bitfinex/quotes_ETHUSD_20250406
["timestamp","ask_amount","ask_price","bid_price","bid_amount"]
[1743951610574,3.0,1768.5,1768.2,3.95861]
[1743951610890,3.0,1768.5,1768.2,7.91735]
[1743951611092,3.0,1768.5,1768.3,3.95852]
[1743951611244,3.0,1768.5,1768.3,7.91704]
[1743951611442,4.35679866,1768.8,1768.4,4.76654]
[1743951611443,3.95753,1768.8,1768.4,4.76654]
[1743951611679,7.91517,1768.8,1768.5,5.799]
[1743951611842,3.0,1768.7,1768.5,5.799]
[1743951612518,3.0,1768.8,1768.6,3.95793]
[1743951612681,0.05,1768.9,1768.6,3.95793]
[1743951612860,0.05,1768.9,1768.6,0.05653549]
[1743951613070,0.05,1768.9,1768.8,3.95748]
[1743951615194,0.05,1768.9,1768.8,4.8338082]
[1743951615491,0.05,1768.9,1768.8,4.77728]
[1743951618488,0.05,1768.9,1768.8,45.46828]
[1743951618896,0.05,1768.9,1768.8,40.691]
[1743951619197,12.32759635,1768.9,1768.8,46.487]
[1743951620067,3.8776,1768.9,1768.8,46.487]
[1743951620468,7.83486,1768.9,1768.8,46.487]
[1743951622300,7.00726,1768.9,1768.8,46.487]
[1743951622501,0.05,1768.9,1768.8,50.44448]
[1743951622815,0.05,1768.9,1768.8,51.26428]
[1743951623585,0.05,1768.9,1768.8,47.3068]
[1743951624298,0.05,1768.9,1768.8,40.691]
[1743951624471,7.82096,1768.9,1768.8,46.486]
[1743951624970,8.37096,1768.9,1768.8,40.691]
[1743951625170,9.99804264,1768.9,1768.8,46.485]
[1743951627997,9.99804264,1768.9,1768.8,5.794]
[1743951629797,3.95835,1768.5,1768.2,41.4652]
[1743951629999,7.90128635,1768.4,1768.3,5.794]
[1743951630199,3.9586,1768.3,1768.2,40.691]
[1743951630504,3.9586,1768.3,1768.2,46.485]
[1743951630699,3.0,1768.5,1768.2,46.485]
[1743951630908,6.95823,1768.5,1768.2,46.485]
[1743951631581,3.95847,1768.4,1768.2,46.485]
[1743951632371,6.95823,1768.5,1768.2,50.44381]
[1743951632573,6.95823,1768.5,1768.2,46.485]
[1743951633592,1.25796899,1768.7,1768.3,0.7556]
[1743951633593,4.78712,1768.7,1768.3,0.7556]
[1743951633773,0.8294,1768.7,1768.3,4.77065604]
[1743951633976,12.68730635,1768.8,1768.4,3.9583]
[1743951634170,4.78689,1768.8,1768.4,3.9583]
[1743951634375,3.95759,1768.8,1768.6,0.7556]
[1743951634606,3.95759,1768.8,1768.7,5.793]
[1743951634800,7.90032635,1768.8,1768.7,5.793]
[1743951638303,3.94273635,1768.8,1768.7,5.793]
[1743951638709,7.90021635,1768.8,1768.7,5.793]
[1743951639276,9.39097199,1768.8,1768.7,5.793]
[1743951640308,7.90021635,1768.8,1768.7,5.793]
[1743951641485,0.05,1768.9,1768.7,5.793]
[1743951641815,0.05,1768.9,1768.8,0.87773292]
[1743951641992,0.05,1768.9,1768.8,0.8212]
[1743951642232,0.05,1768.9,1768.8,4.83520824]
[1743951642386,0.05,1768.9,1768.8,3.95748]
[1743951642595,0.05,1768.9,1768.8,4.77868]
[1743951643892,0.05,1768.9,1768.8,4.83519523]
[1743951644379,0.05,1768.9,1768.8,7.83519523]
[1743951644612,0.05,1768.9,1768.8,8.25116474]
[1743951645110,0.05,1768.9,1768.8,8.19464951]
[1743951645980,0.05,1768.9,1768.8,7.77868]
[1743951646280,0.05,1768.9,1768.8,4.77868]
[1743951651982,0.05,1768.9,1768.8,50.42948]
[1743951652412,0.05,1768.9,1768.8,51.23118]
[1743951658633,0.05,1768.9,1768.8,45.44318]
[1743951658833,0.05,1768.9,1768.8,50.42748]
[1743951659016,0.05,1768.9,1768.8,46.47]
[1743951659543,0.05,1768.9,1768.8,50.42748]
[1743951660242,0.05,1768.9,1768.8,46.47]
[1743951660702,0.05,1768.9,1768.8,40.684]
[1743951660902,4.00726,1768.9,1768.8,46.469]
[1743951661146,8.74642735,1768.9,1768.8,40.684]
[1743951661344,4.73402,1768.5,1768.1,45.42805]
[1743951661554,1.622231,1768.9,1768.5,3.95803]
[1743951661762,1.622231,1768.9,1768.6,9.74278]
[1743951661763,0.8258,1768.9,1768.6,9.74278]
[1743951662058,0.8258,1768.9,1768.6,9.79931739]
[1743951663005,0.8258,1768.9,1768.6,5.785]
[1743951663006,3.95748,1768.8,1768.6,5.785]
[1743951663417,4.78306,1768.9,1768.6,5.785]
[1743951663616,0.8258,1768.9,1768.6,5.785]
[1743951663821,0.05,1768.9,1768.6,9.74291]
[1743951664008,0.05,1768.9,1768.6,5.84153518]
[1743951664208,0.05,1768.9,1768.8,4.74568]
[1743951664637,0.05,1768.9,1768.7,4.54165352]
[1743951664911,0.05,1768.9,1768.7,8.49927352]
[1743951665116,0.05,1768.9,1768.8,3.95748]
[1743951665517,0.05,1768.9,1768.7,4.54165352]
[1743951666027,0.05,1768.9,1768.7,8.49924352]
[1743951666222,0.05,1768.9,1768.8,4.68533902]
[1743951666426,0.05,1768.9,1768.8,5.53006496]
[1743951666629,0.05,1768.9,1768.8,5.53006473]
[1743951666821,0.05,1768.9,1768.8,5.47353902]
[1743951667019,0.05,1768.9,1768.8,5.53006474]
[1743951667343,7.95000635,1768.9,1768.8,5.784]
[1743951667549,4.76853635,1768.9,1768.8,5.784]
[1743951667919,8.72579635,1768.9,1768.8,5.784]
[1743951669757,11.72579635,1768.9,1768.8,5.784]
[1743951673857,0.05,1768.9,1768.8,5.784]
[1743951674059,0.05,1768.9,1768.8,9.74148]
[1743951674779,0.05,1768.9,1768.8,10.59320325]
[1743951674956,0.05,1768.9,1768.8,10.53668]
[1743951677755,0.05,1768.9,1768.8,11.05658054]
[1743951678773,0.05,1768.9,1768.8,11.11309885]
[1743951680330,0.05,1768.9,1768.8,11.05658054]
[1743951685169,1e-05,1768.9,1768.8,18.05583597]
[1743951685354,1e-05,1768.9,1768.8,18.54931689]
[1743951685553,1e-05,1768.9,1768.8,22.49205324]
[1743951685765,0.85561476,1769.8,1769.7,3.95547]
[1743951685936,0.85561476,1769.8,1769.7,9.73547]
[1743951686647,0.85561476,1769.8,1769.7,10.25537054]
[1743951687246,0.04381476,1769.8,1769.7,10.25537054]
[1743951687434,0.04381476,1769.8,1769.7,11.05057054]
[1743951688737,0.04381476,1769.8,1769.7,11.10706257]
[1743951690671,0.04381476,1769.8,1769.7,11.05057054]
[1743951691755,0.04381476,1769.8,1769.7,11.10706242]
[1743951692755,4.76e-06,1769.8,1769.7,11.10706016]
[1743951693161,4.76e-06,1769.8,1769.7,11.1070572]
[1743951693359,4.76e-06,1769.8,1769.7,14.1070572]
[1743951693549,4.76e-06,1769.8,1769.7,14.05057054]
[1743951694586,0.04920476,1769.9,1769.8,7.77834]
[1743951694749,0.04920476,1769.9,1769.8,11.77755481]
[1743951694947,0.04920476,1769.9,1769.8,12.24097689]
[1743951695165,4.76e-06,1769.9,1769.8,12.24097689]
[1743951695565,4.76e-06,1769.9,1769.8,12.79097689]
[1743951695889,0.05,1770.9,1770.8,3.95301]
[1743951696083,0.05,1770.9,1770.8,9.72801]
[1743951696260,0.05,1770.9,1770.8,10.55111]
[1743951696853,0.05,1770.9,1770.8,11.12746258]
[1743951697255,0.05,1770.9,1770.8,10.24791054]
[1743951697481,0.05,1770.9,1770.8,11.07101054]
[1743951697810,0.05,1770.9,1770.8,5.29601054]
[1743951697962,0.05,1770.9,1770.8,10.24691054]
[1743951698382,0.05,1770.9,1770.8,9.78347257]
[1743951698704,0.05,1770.9,1770.8,13.14000867]
[1743951698905,0.05,1770.9,1770.8,13.96310867]
[1743951699501,1e-05,1770.9,1770.8,13.96310867]
[1743951700057,1e-05,1770.9,1770.8,14.47551288]
[1743951701153,0.764,1771.8,1771.5,3.95133]
[1743951701478,0.764,1771.8,1771.6,46.419]
[1743951701789,1e-05,1771.9,1771.7,3.95091]
[1743951701990,1e-05,1771.9,1771.8,4.00721333]
[1743951702336,1e-05,1771.9,1771.8,4.83031333]
[1743951702459,1e-05,1771.9,1771.8,8.77303768]
[1743951702807,1e-05,1771.9,1771.8,4.83030133]
[1743951703153,1e-05,1771.9,1771.8,4.77388]
[1743951703357,1e-05,1771.9,1771.8,9.72178]
[1743951703882,1e-05,1771.9,1771.8,3.95078]
[1743951704090,0.76401,1771.9,1771.8,5.77]
[1743951704476,4.70674635,1771.9,1771.8,5.77]
[1743951704682,9.54750199,1771.9,1771.8,5.77]
[1743951705058,5.59686199,1771.9,1771.8,5.77]
[1743951705288,1.65412564,1771.9,1771.8,5.77]
[1743951705487,0.78841,1771.9,1771.8,5.77]
[1743951706255,1e-05,1771.9,1771.8,9.72078]
[1743951706990,1e-05,1771.9,1771.8,10.50948]
[1743951707358,1e-05,1771.9,1771.8,13.98064451]
[1743951707555,1e-05,1771.9,1771.8,13.92422595]
[1743951707990,1e-05,1771.9,1771.8,10.92422595]
[1743951710361,1e-05,1771.9,1771.8,10.50648]
[1743951710672,1e-05,1771.9,1771.8,5.767]
[1743951711071,0.82011,1771.9,1771.8,5.767]
[1743951711273,1.297164,1771.9,1771.8,5.767]
[1743951711465,0.82011,1771.9,1771.8,5.767]
[1743951712500,4.77067,1771.9,1771.8,5.767]
[1743951713396,0.82011,1771.9,1771.8,5.767]
[1743951713730,4.77067,1771.9,1771.8,5.767]
[1743951713935,0.82011,1771.9,1771.8,5.767]
[1743951714434,1e-05,1771.9,1771.8,9.71778]
[1743951714783,1e-05,1771.9,1771.8,5.767]
[1743951717508,1e-05,1771.9,1771.6,44.59803]
[1743951717713,0.7711,1771.8,1771.7,5.765]
[1743951718626,1e-05,1771.9,1771.7,9.71598]
[1743951719247,1e-05,1771.9,1771.7,5.765]
[1743951720597,3.95067,1771.9,1771.7,5.765]
[1743951721226,1e-05,1771.9,1771.7,5.765]
[1743951722430,3.95062,1771.9,1771.7,5.765]
[1743951722643,8.76855,1771.9,1771.6,40.647]
[1743951722798,4.81783,1771.9,1771.7,5.765]
[1743951722993,8.76855,1771.9,1771.7,5.765]
[1743951723194,3.95078,1771.8,1771.7,5.765]
[1743951723618,4.7221,1771.7,1771.6,40.647]
[1743951723817,5.589388,1771.7,1771.6,46.412]
[1743951724331,5.589388,1771.7,1771.6,46.411]
[1743951724634,5.589388,1771.7,1771.6,46.412]
[1743951725427,4.818288,1771.7,1771.6,46.412]
[1743951725828,1e-05,1771.9,1771.6,50.36314]
[1743951726199,1e-05,1771.9,1771.6,46.412]
[1743951726400,3.95081,1771.8,1771.6,46.412]
[1743951726922,3.95057,1771.9,1771.6,46.412]
[1743951726923,3.95057,1771.9,1771.7,0.51592882]
[1743951727121,3.95078,1771.8,1771.7,0.51592882]
[1743951727434,6.113415,1771.8,1771.7,0.51592882]
[1743951727600,3.95145,1771.5,1771.4,5.764]
[1743951727801,9.10717028,1771.5,1771.4,5.764]
[1743951728030,3.95256,1771.0,1770.9,40.62]
[1743951728236,3.95256,1771.0,1770.9,46.384]
[1743951728530,3.95244,1771.1,1770.9,46.384]
[1743951728711,3.95256,1771.0,1770.9,46.384]
[1743951729301,7.87156133,1771.0,1770.9,46.384]
[1743951729702,7.87156133,1771.0,1770.9,46.90073136]
[1743951730334,9.84336146,1771.0,1770.9,6.28073136]
[1743951730636,8.66096133,1771.0,1770.9,6.28073136]
[1743951732144,0.7894,1771.0,1770.9,5.764]
[1743951732309,0.7894,1771.2,1770.9,5.764]
[1743951732645,3.95241,1771.1,1770.9,5.764]
[1743951732814,3.95316,1770.8,1770.5,40.62]
[1743951733017,7.90636,1770.8,1770.6,6.2799232]
[1743951733238,3.95316,1770.8,1770.6,6.2799232]
[1743951733440,4.70840133,1770.9,1770.6,0.5159232]
[1743951733441,8.66163133,1770.7,1770.6,0.5159232]
[1743951733638,11.66163133,1770.7,1770.6,0.5159232]
[1743951733840,12.21163133,1770.7,1770.6,0.5159232]
[1743951734217,7.74286,1770.6,1770.5,5.764]
[1743951734425,9.65936913,1770.6,1770.5,5.764]
[1743951735456,14.00335299,1770.6,1770.5,5.764]
[1743951735816,3.95368,1770.5,1770.4,2.94286816]
[1743951736011,3.95368,1770.5,1770.4,8.70786816]
[1743951736430,3.95368,1770.5,1770.4,2.94286816]
[1743951736626,5.7493833,1770.5,1770.4,2.94286816]
[1743951736831,6.5587833,1770.5,1770.4,8.70886816]
[1743951737060,3.95457,1770.1,1770.0,40.629]
[1743951737227,4.76397,1770.1,1770.0,46.394]
[1743951737421,4.76397,1770.1,1770.0,40.629]
[1743951737621,4.76397,1770.1,1770.0,46.394]
[1743951738042,3.95516,1769.9,1769.6,40.637]
[1743951738347,3.95535,1769.8,1769.7,5.765]
[1743951738528,4.76475,1769.8,1769.7,5.765]
[1743951738928,0.8094,1769.8,1769.7,5.765]
[1743951739314,4.76464,1769.8,1769.7,5.765]
[1743951740672,3.95547,1769.7,1769.6,40.637]
[1743951740969,12.10885386,1769.7,1769.6,46.404]
[1743951741719,12.10885386,1769.7,1769.6,40.637]
[1743951741921,12.10885386,1769.7,1769.6,46.403]
[1743951742156,13.84590038,1769.7,1769.6,46.403]
[1743951742647,12.10885386,1769.7,1769.6,46.403]
[1743951745152,4.76395,1770.2,1769.8,3.95524]
[1743951745351,3.95461,1770.1,1769.7,3.95532]
[1743951745933,4.76394,1770.2,1769.8,3.9552]
[1743951746531,4.76394,1770.2,1769.7,3.9553]
[1743951746731,3.95475,1770.1,1769.8,0.39553]
[1743951747147,3.9548,1770.0,1769.6,50.35868]
[1743951747732,3.95513,1769.9,1769.6,46.403]
[1743951748151,5.15338386,1770.2,1769.6,50.35858]
[1743951748332,3.9547,1770.1,1769.7,0.05650066]
[1743951748532,3.9547,1770.1,1769.6,46.403]
[1743951748533,0.55,1770.1,1769.6,46.403]
[1743951748761,3.95488,1770.0,1769.6,46.403]
[1743951749330,3.95507,1769.9,1769.6,46.403]
[1743951750159,3.95533,1769.8,1769.6,46.403]
[1743951750662,3.95507,1769.9,1769.6,46.403]
[1743951751042,3.95537,1769.8,1769.6,46.403]
[1743951751776,3.95547,1769.7,1769.6,40.637]
[1743951752066,4.351007,1769.7,1769.6,40.637]
[1743951752236,4.351007,1769.7,1769.6,46.405]
[1743951752780,3.95547,1769.7,1769.6,46.405]
[1743951753463,6.95547,1769.7,1769.6,46.405]
[1743951753643,7.50547,1769.7,1769.6,40.637]
[1743951753843,8.28077,1769.7,1769.6,46.405]
[1743951754157,3.95659,1769.2,1769.1,0.05]
[1743951754470,3.95659,1769.2,1769.1,5.818]
[1743951755935,3.95659,1769.2,1769.1,0.05]
[1743951756138,6.95659,1769.2,1769.1,0.05]
[1743951756347,6.95659,1769.2,1769.1,5.818]
[1743951757168,13.01939886,1769.2,1769.1,5.818]
[1743951759072,11.30057386,1769.2,1769.1,5.818]
[1743951760069,12.08267386,1769.2,1769.1,5.818]
[1743951760775,12.08267386,1769.2,1769.1,0.05]
[1743951761076,8.28936,1768.9,1768.8,43.60836319]
[1743951761278,12.63334386,1768.9,1768.8,40.663]
[1743951761465,14.29238925,1768.9,1768.8,40.663]
[1743951761869,6.95748,1768.8,1768.7,5.769]
[1743951762262,6.95748,1768.8,1768.2,0.05654404]
[1743951762263,0.7821,1768.6,1768.1,41.5308]
[1743951762468,3.95825,1768.5,1768.2,5.769]
[1743951762670,5.26247739,1768.5,1768.2,5.769]
[1743951763250,9.22079739,1768.5,1768.2,5.769]
[1743951763451,3.95806,1768.6,1768.3,0.8048]
[1743951763942,3.95806,1768.6,1768.3,1.32129812]
[1743951765486,7.7396,1768.8,1768.4,0.05654665]
[1743951765778,5.61631539,1768.9,1768.4,4.01478094]
[1743951765969,0.43400166,1769.0,1768.6,0.8048]
[1743951766182,3.95741,1768.9,1768.7,5.769]
[1743951766479,3.95748,1768.8,1768.7,5.769]
[1743951767552,7.73951,1768.9,1768.7,5.769]
[1743951767751,3.0,1768.9,1768.7,5.769]
[1743951767980,3.0,1768.9,1768.7,6.5738]
[1743951768192,3.0,1768.9,1768.7,10.53134]
[1743951768566,7.91335,1769.2,1768.8,3.95747]
[1743951768783,3.0,1769.1,1768.8,3.95747]
[1743951769275,10.9138,1769.1,1768.7,10.53134]
[1743951769475,6.95682,1769.1,1768.7,10.53134]
[1743951770013,6.95682,1769.1,1768.8,0.51581008]
[1743951770386,3.0,1769.1,1768.8,0.51581008]
[1743951770611,3.95726,1768.9,1768.8,0.51581008]
[1743951771479,3.95726,1768.9,1768.7,5.769]
[1743951772513,3.95765,1768.8,1768.5,41.4878]
[1743951772715,3.95765,1768.8,1768.6,5.769]
[1743951772876,7.91531,1768.8,1768.6,5.769]
[1743951773083,7.73936,1768.9,1768.6,5.769]
[1743951773388,12.37392822,1768.9,1768.6,5.769]
[1743951773583,7.63438822,1768.9,1768.6,5.769]
[1743951773787,6.95726,1768.9,1768.6,9.72691]
[1743951774008,6.95726,1768.9,1768.6,5.769]
[1743951774898,3.95756,1768.8,1768.6,5.769]
[1743951775614,3.9577,1768.7,1768.6,5.769]
[1743951776386,3.95756,1768.8,1768.6,5.769]
[1743951777106,3.0,1768.9,1768.6,5.769]
[1743951777314,3.0,1768.9,1768.6,9.7268]
[1743951777515,6.95736,1768.9,1768.6,5.769]
[1743951777720,3.0,1768.9,1768.6,5.769]
[1743951778617,6.95736,1768.9,1768.6,5.769]
[1743951778819,3.0,1768.9,1768.6,9.72684]
[1743951779507,3.0,1768.9,1768.7,0.51708796]
[1743951779819,6.95728,1768.9,1768.7,0.51708796]
[1743951780021,3.95748,1768.8,1768.7,0.51708796]
[1743951780192,6.95728,1768.9,1768.7,0.51708796]
[1743951780386,3.95748,1768.8,1768.7,0.51708796]
[1743951781023,3.0,1768.9,1768.7,0.51708796]
[1743951781230,3.95748,1768.8,1768.7,0.51708796]
[1743951782616,10.88603129,1768.9,1768.7,0.51708796]
[1743951783121,1.74796688,1769.1,1768.7,5.29488796]
[1743951783122,13.59055817,1769.1,1768.7,5.29488796]
[1743951783427,3.95705,1769.0,1768.7,5.29488796]
[1743951783816,9.63356817,1769.1,1768.7,0.51708796]
[1743951783817,7.88619129,1768.9,1768.7,0.51708796]
[1743951784023,7.88619129,1768.9,1768.8,0.51708796]
[1743951784592,11.43619129,1768.9,1768.8,0.51708796]
[1743951785111,3.95748,1768.8,1768.7,0.51708796]
[1743951785288,8.32738,1768.8,1768.7,0.51708796]
[1743951785495,14.22977233,1768.8,1768.7,0.51708796]
[1743951785912,6.95838,1768.4,1768.3,8.71415762]
[1743951786094,10.88715129,1768.4,1768.3,2.94615762]
[1743951786288,10.88715129,1768.4,1768.3,8.71415762]
[1743951786497,12.42668942,1768.4,1768.3,8.71415762]
[1743951787322,9.31781813,1768.4,1768.3,2.94615762]
[1743951787922,9.75232918,1768.4,1768.3,2.94615762]
[1743951788693,10.30232918,1768.4,1768.3,2.94615762]
[1743951789119,3.95882,1768.2,1768.1,0.05]
[1743951789425,12.68365302,1768.2,1768.1,0.05]
[1743951793249,11.70190713,1768.8,1768.1,0.05]
[1743951793250,4.78316,1768.5,1768.1,0.05]
[1743951793551,3.95793,1768.6,1768.2,9.72678]
[1743951794127,3.0,1768.6,1768.2,9.78322122]
[1743951794301,3.0,1768.6,1768.3,4.7251]
[1743951794498,4.374685,1768.8,1768.4,3.95835]
[1743951794831,0.8249,1769.0,1768.5,4.01451521]
[1743951794832,7.91436,1769.0,1768.5,4.01451521]
[1743951794993,3.0,1768.9,1768.6,9.72591]
[1743951795617,3.7774,1769.2,1768.6,5.768]
[1743951795829,3.95769,1768.8,1768.6,5.768]
[1743951796501,6.95726,1768.9,1768.6,5.768]
[1743951797448,3.95753,1768.8,1768.6,5.768]
[1743951797806,6.95726,1768.9,1768.6,5.768]
[1743951798218,3.0,1768.9,1768.6,5.768]
[1743951798422,3.95704,1769.0,1768.7,0.7874]
[1743951799445,7.93461596,1769.1,1768.7,0.7874]
[1743951799446,7.93461596,1769.1,1768.7,4.74502]
[1743951799984,3.95715,1769.0,1768.7,0.7874]
[1743951801163,3.97780596,1769.1,1768.7,4.7451]
[1743951801324,7.93463596,1769.1,1768.7,4.7451]
[1743951801520,9.20149856,1769.1,1768.7,0.7874]
[1743951801725,3.9572,1769.0,1768.7,0.7874]
[1743951802321,3.95726,1768.9,1768.7,0.7874]
[1743951804144,3.95726,1768.9,1768.6,5.768]
[1743951804343,3.95704,1769.0,1768.6,5.768]
[1743951804547,3.95704,1769.0,1768.6,9.72589]
[1743951804943,9.20156856,1769.1,1768.7,3.95766]
[1743951805458,9.20156856,1769.1,1768.7,3.95757]
[1743951805857,4.69466856,1769.1,1768.6,5.768]
[1743951806062,3.42780596,1769.1,1768.8,3.95729]
[1743951806295,3.42780596,1769.1,1768.8,7.91463]
[1743951806451,4.314,1769.4,1768.8,3.95748]
[1743951806651,7.91346,1769.2,1768.8,3.95748]
[1743951807066,3.95671,1769.2,1768.8,3.95748]
[1743951807262,7.88441688,1769.2,1768.8,3.95748]
[1743951807679,3.95682,1769.1,1768.8,3.95748]
[1743951807858,7.88441688,1769.2,1768.8,3.95748]
[1743951808043,7.88441688,1769.2,1768.9,3.95724]
[1743951808243,0.42679238,1769.5,1769.1,0.83]
[1743951808449,4.38284238,1769.5,1769.2,0.05651849]
[1743951808665,3.95589,1769.6,1769.2,0.05651656]
[1743951808847,3.95587,1769.6,1769.2,0.05651656]
[1743951809048,3.95593,1769.5,1769.2,0.05651656]
[1743951809244,3.95593,1769.5,1769.1,8.74331]
[1743951809245,4.74711,1769.5,1769.1,4.78665]
[1743951809554,4.74711,1769.5,1769.2,3.95659]
[1743951810176,0.79118,1769.5,1769.1,4.78681]
[1743951810378,3.95673,1769.2,1768.9,0.7704]
[1743951810589,6.95689,1769.1,1769.0,5.765]
[1743951811174,3.0,1769.1,1769.0,5.765]
[1743951811577,6.95681,1769.1,1769.0,5.765]
[1743951811782,8.04815,1769.1,1769.0,5.765]
[1743951811971,4.09134,1769.1,1769.0,5.765]
[1743951812353,3.95624,1769.4,1769.0,9.72203]
[1743951812553,3.95594,1769.5,1769.1,3.95668]
[1743951812748,3.0,1769.5,1769.2,4.7269]
[1743951812975,3.0,1769.5,1769.2,8.73989977]
[1743951813353,6.95604,1769.5,1769.2,0.82691977]
[1743951813555,6.95604,1769.5,1769.2,0.7704]
[1743951815070,4.75753,1769.4,1769.0,6.5947]
[1743951815279,3.95644,1769.3,1769.1,5.764]
[1743951816072,3.95623,1769.4,1769.1,5.764]
[1743951816568,4.52383836,1769.5,1769.2,3.9565]
[1743951816768,8.47975836,1769.5,1769.1,9.72081]
[1743951817857,3.95622,1769.4,1769.1,5.764]
[1743951818467,5.19981784,1769.4,1769.1,5.764]
[1743951818887,9.15614784,1769.4,1769.2,5.763]
[1743951819186,5.19981784,1769.4,1769.2,5.763]
[1743951819590,3.95622,1769.4,1769.2,5.763]
[1743951820257,7.38858236,1769.5,1769.2,5.763]
[1743951822691,3.95617,1769.4,1769.2,5.763]
[1743951823079,3.95636,1769.3,1769.2,5.763]
[1743951824169,3.95617,1769.4,1769.2,5.763]
[1743951824686,3.95636,1769.3,1769.0,41.5117]
[1743951824854,6.9566,1769.2,1769.0,41.5117]
[1743951825055,6.9566,1769.2,1769.1,5.762]
[1743951825688,3.0,1769.2,1769.1,5.762]
[1743951825892,0.43265236,1769.5,1769.1,5.762]
[1743951826185,0.8013,1769.6,1769.2,0.5762]
[1743951826385,0.8013,1769.6,1769.2,4.53189926]
[1743951826562,10.91112,1769.7,1769.3,3.95627]
[1743951826762,3.0,1769.5,1769.2,4.53189926]
[1743951827169,6.956,1769.5,1769.2,0.51880236]
[1743951827370,3.95615,1769.4,1769.2,0.51880236]
[1743951828288,3.95636,1769.3,1769.1,5.762]
[1743951828489,6.95636,1769.3,1769.0,41.5117]
[1743951828682,3.95681,1769.1,1769.0,40.682]
[1743951828879,4.38448673,1769.1,1769.0,46.443]
[1743951829274,0.42767673,1769.1,1769.0,46.443]
[1743951829473,3.95673,1769.2,1769.0,46.443]
[1743951830110,3.0,1769.2,1769.0,46.443]
[1743951830703,3.95638,1769.3,1769.0,46.443]
[1743951830910,6.95667,1769.2,1769.0,46.443]
[1743951833690,6.95667,1769.2,1769.0,40.682]
[1743951833885,3.95681,1769.1,1769.0,40.682]
[1743951834263,3.95681,1769.1,1769.0,46.443]
[1743951835477,11.68558876,1769.2,1769.0,46.443]
[1743951835662,10.88458876,1769.2,1769.0,46.443]
[1743951836495,3.0,1769.2,1769.0,46.443]
[1743951836700,6.95671,1769.2,1769.0,46.443]
[1743951837099,3.0,1769.2,1769.0,46.443]
[1743951838799,6.95664,1769.2,1769.0,46.443]
[1743951843106,3.0,1769.2,1769.0,46.443]
[1743951843510,3.0,1769.2,1769.1,0.7587]
[1743951844106,3.0,1769.2,1769.1,1.27845751]
[1743951844407,3.0,1769.2,1769.1,0.51975751]
[1743951845078,3.0,1769.2,1769.0,47.2017]
[1743951845273,6.95667,1769.2,1769.0,47.2017]
[1743951845497,3.95681,1769.1,1769.0,46.443]
[1743951845701,7.88472876,1769.1,1769.0,46.441]
[1743951846005,10.88472876,1769.1,1769.0,40.682]
[1743951846209,10.88472876,1769.1,1769.0,46.441]
[1743951846999,11.43472876,1769.1,1769.0,46.441]
[1743951847194,13.90381452,1769.1,1769.0,40.682]
[1743951847396,7.91613,1768.6,1768.3,40.683]
[1743951847593,7.91613,1768.6,1768.4,5.759]
[1743951847910,6.95838,1768.4,1768.3,40.683]
[1743951848287,6.95838,1768.4,1768.3,46.442]
[1743951848495,8.44282888,1768.4,1768.3,46.442]
[1743951849308,3.0,1768.4,1768.3,46.442]
[1743951849477,3.0,1768.7,1768.4,4.71695]
[1743951849678,3.92791876,1768.8,1768.5,3.95811]
[1743951849910,7.77836,1768.9,1768.4,4.77349205]
[1743951850304,7.77836,1768.9,1768.4,4.71695]
[1743951850497,3.95753,1768.8,1768.4,8.73171209]
[1743951850805,3.95772,1768.7,1768.4,0.7587]
[1743951851180,5.60485576,1769.1,1768.7,3.95759]
[1743951851181,6.38239576,1769.1,1768.7,3.95759]
[1743951851373,1.64798576,1769.1,1768.8,10.53718]
[1743951851601,3.0,1769.1,1768.8,10.53718]
[1743951852107,6.95683,1769.1,1768.8,6.5797]
[1743951852303,3.95683,1769.1,1768.8,6.5797]
[1743951853097,3.95709,1769.0,1768.8,6.5797]
[1743951853286,3.95726,1768.9,1768.8,5.758]
[1743951853490,7.88477876,1769.1,1768.8,5.758]
[1743951853812,5.45514356,1769.1,1768.8,5.758]
[1743951854582,5.45514356,1769.1,1768.8,9.71547]
[1743951854781,4.3874692,1769.2,1768.8,9.71547]
[1743951855897,4.3874692,1769.2,1768.9,0.7869]
[1743951856102,8.3442392,1769.2,1768.9,0.7869]
[1743951856615,4.3874492,1769.2,1768.9,0.7869]
[1743951857280,0.4306792,1769.2,1768.9,4.74415]
[1743951857626,12.61832876,1769.3,1768.9,4.74415]
[1743951857784,5.21848288,1769.2,1768.9,0.7869]
[1743951857981,0.41843728,1769.2,1768.9,0.7869]
[1743951858185,3.95637,1769.3,1768.9,4.74401]
[1743951858401,3.95659,1769.2,1768.9,0.7869]
[1743951858601,7.88450876,1769.2,1768.9,0.7869]
[1743951859021,0.55,1769.3,1769.0,3.95692]
[1743951860050,7.88415876,1769.4,1769.0,3.95692]
[1743951860192,8.72757464,1769.4,1769.0,3.95692]
[1743951860391,12.68393464,1769.4,1769.0,3.95692]
[1743951860592,8.72757464,1769.4,1768.9,4.74411]
[1743951860807,7.91301,1769.3,1768.9,4.74411]
[1743951861487,8.34619621,1769.3,1768.9,0.7869]
[1743951861717,7.88466876,1769.2,1768.9,0.7869]
[1743951862296,3.92791876,1769.2,1768.9,4.74416]
[1743951862650,3.95682,1769.1,1768.9,0.7869]
[1743951862946,7.88471876,1769.2,1768.9,0.7869]
[1743951864436,3.95681,1769.1,1768.9,0.7869]